bitfinex/quotes_SOLUSD_20250719
["timestamp","ask_amount","ask_price","bid_price","bid_amount"]
[1752942218981,9.94255859,177.61,177.6,26.00000001]
[1752942219664,9.94255859,177.61,177.6,1e-08]
[1752942229412,45.0500752,177.62,177.6,1e-08]
[1752942229570,5.6300752,177.62,177.6,0.65000001]
[1752942229770,0.06,177.64,177.6,0.65000001]
[1752942229771,9.2319906,177.63,177.6,0.65000001]
[1752942229981,9.2319906,177.63,177.6,26.65000001]
[1752942230591,3.60224499,177.61,177.6,1e-08]
[1752942230999,4.31224499,177.61,177.6,1e-08]
[1752942231783,9.94255859,177.61,177.6,1e-08]
[1752942233303,9.23255859,177.61,177.6,1e-08]
[1752942233684,9.90255859,177.61,177.6,1e-08]
[1752942239601,9.23255859,177.61,177.6,1e-08]
[1752942241477,5.6303136,177.61,177.6,1e-08]
[1752942241701,3.60224499,177.62,177.6,0.67000001]
[1752942242606,3.60224499,177.62,177.6,26.00000001]
[1752942242607,0.06,177.61,177.6,26.00000001]
[1752942243278,0.06,177.61,177.6,47.05692897]
[1752942247410,0.06,177.61,177.6,43.45468398]
[1752942247593,0.06,177.61,177.6,47.05692897]
[1752942248408,0.06,177.61,177.6,53.49692897]
[1752942249815,0.06,177.61,177.6,53.49692897]
[1752942250614,0.06,177.61,177.6,126.68692897]
[1752942258716,0.06,177.61,177.6,123.08468398]
[1752942259025,0.06,177.61,177.6,126.68692897]
[1752942262820,0.06,177.61,177.6,132.3175596]
[1752942265107,0.06,177.61,177.6,128.71531461]
[1752942265321,0.06,177.61,177.6,132.3175596]
[1752942265521,0.06,177.61,177.6,132.2975596]
[1752942270519,0.06,177.61,177.6,149.2175596]
[1752942270832,0.06,177.61,177.6,132.2975596]
[1752942282439,0.06,177.61,177.6,128.69531461]
[1752942282637,0.06,177.61,177.6,132.2975596]
[1752942290357,0.69,177.67,177.64,26.0]
[1752942290648,0.69,177.67,177.66,3.60224499]
[1752942290843,0.69,177.67,177.65,56.14468397]
[1752942291047,0.06,177.68,177.67,26.0]
[1752942291532,5.68809545,177.68,177.67,26.0]
[1752942292127,0.75,177.68,177.67,26.0]
[1752942293150,6.37809545,177.68,177.67,26.0]
[1752942293464,0.75,177.68,177.67,26.0]
[1752942295567,0.75,177.68,177.65,62.58468397]
[1752942295568,9.96850913,177.68,177.65,6.44]
[1752942295870,3.59041368,177.66,177.62,45.8]
[1752942296034,0.7,177.65,177.62,45.8]
[1752942296235,0.7,177.65,177.64,26.0]
[1752942296436,0.7,177.65,177.62,49.39041368]
[1752942296769,0.7,177.65,177.64,26.0]
[1752942297078,0.76,177.68,177.65,42.78468397]
[1752942297365,0.06,177.68,177.67,3.59041368]
[1752942298057,0.76,177.68,177.67,3.59041368]
[1752942299052,0.76,177.68,177.66,49.39041368]
[1752942299364,0.7,177.67,177.66,66.17509765]
[1752942300063,0.06,177.68,177.66,66.17509765]
[1752942300367,0.76,177.68,177.67,3.59041368]
[1752942301371,0.76,177.68,177.66,66.17509765]
[1752942301865,0.76,177.68,177.67,3.59041368]
[1752942302189,0.76,177.68,177.66,66.17509765]
[1752942302366,0.7,177.67,177.66,66.17509765]
[1752942302933,0.06,177.68,177.66,66.17509765]
[1752942303234,0.06,177.68,177.67,3.59041368]
[1752942304268,0.76,177.68,177.66,62.58468397]
[1752942304465,0.76,177.68,177.67,3.59041368]
[1752942304639,0.7,177.67,177.66,66.17509765]
[1752942305641,0.7,177.67,177.66,6.44]
[1752942305841,4.29041368,177.67,177.66,6.44]
[1752942306344,9.9188259,177.67,177.65,0.03]
[1752942306669,4.29041368,177.66,177.65,0.03]
[1752942307644,9.91914271,177.66,177.65,0.03]
[1752942312777,13.50955639,177.66,177.65,0.03]
[1752942312979,15.17375639,177.66,177.65,0.03]
[1752942313188,29.24557897,177.66,177.61,0.03]
[1752942313467,3.59041368,177.62,177.61,0.03]
[1752942314055,9.9204103,177.62,177.61,0.03]
[1752942315773,11.4270103,177.62,177.61,0.03]
[1752942316184,11.4270103,177.62,177.6,1e-08]
[1752942316355,4.29041368,177.61,177.6,1e-08]
[1752942317784,4.29041368,177.61,177.57,0.03]
[1752942318077,4.29041368,177.61,177.56,0.03]
[1752942318078,1.5066,177.57,177.56,1e-08]
[1752942318277,14.31900927,177.57,177.56,1e-08]
[1752942318583,15.01900927,177.57,177.56,1e-08]
[1752942319150,7.83818191,177.57,177.56,1e-08]
[1752942319378,11.42859559,177.57,177.56,1e-08]
[1752942319871,9.92199559,177.57,177.56,1e-08]
[1752942321366,6.33158191,177.57,177.56,1e-08]
[1752942321557,9.92199559,177.57,177.56,1e-08]
[1752942321752,6.33158191,177.57,177.56,1e-08]
[1752942321957,9.92199559,177.57,177.56,1e-08]
[1752942323858,4.25041368,177.6,177.56,1e-08]
[1752942324058,5.63094768,177.59,177.56,3.59041369]
[1752942324282,5.63094768,177.59,177.56,4.25041369]
[1752942324668,6.2907309,177.6,177.57,29.59041368]
[1752942325270,5.6307309,177.6,177.59,26.0]
[1752942325455,5.63038077,177.61,177.58,30.25041368]
[1752942325656,5.63003826,177.62,177.59,30.25041368]
[1752942326263,6.29003826,177.62,177.59,30.25041368]
[1752942327397,5.62939713,177.64,177.62,26.0]
[1752942327570,5.62939713,177.64,177.62,29.59041368]
[1752942327897,6.34913737,177.65,177.62,29.59041368]
[1752942328063,6.34913737,177.65,177.62,30.25041368]
[1752942328520,0.06,177.65,177.62,30.25041368]
[1752942329513,0.06,177.65,177.63,4.25041368]
[1752942329801,0.06,177.65,177.64,29.59041368]
[1752942329981,0.06,177.65,177.64,26.0]
[1752942333215,0.06,177.65,177.64,47.03509765]
[1752942333590,0.06,177.65,177.64,43.44468397]
[1752942333800,0.06,177.65,177.64,47.03509765]
[1752942334528,0.72,177.65,177.64,26.0]
[1752942335316,0.06,177.65,177.64,26.0]
[1752942335986,0.06,177.65,177.64,29.59041368]
[1752942336491,0.06,177.65,177.64,26.0]
[1752942336992,6.34904587,177.65,177.64,26.0]
[1752942337910,0.06,177.65,177.64,26.0]
[1752942339094,0.06,177.65,177.64,30.25041368]
[1752942339299,0.06,177.65,177.64,47.03509765]
[1752942339608,0.06,177.65,177.64,46.37509765]
[1752942340113,0.06,177.65,177.64,49.22468397]
[1752942340312,0.06,177.65,177.64,86.60509765]
[1752942340822,0.06,177.65,177.64,32.44]
[1752942344510,0.06,177.65,177.64,36.69041368]
[1752942344698,0.06,177.65,177.64,33.1]
[1752942344897,0.06,177.65,177.64,36.69041368]
[1752942345837,0.06,177.65,177.64,36.03041368]
[1752942346002,0.06,177.65,177.64,29.59041368]
[1752942348218,0.06,177.65,177.64,30.25041368]
[1752942348622,0.06,177.65,177.64,29.59041368]
[1752942349412,0.06,177.65,177.64,30.25041368]
[1752942350201,0.06,177.65,177.64,92.0244604]
[1752942350401,0.06,177.65,177.64,120.18509765]
[1752942351515,0.06,177.65,177.64,125.8144604]
[1752942352421,0.06,177.65,177.64,122.22404672]
[1752942352620,0.06,177.65,177.64,125.8144604]
[1752942353406,0.06,177.65,177.64,122.22404672]
[1752942353616,0.06,177.65,177.64,125.8144604]
[1752942354336,0.06,177.65,177.64,122.22404672]
[1752942354633,0.06,177.65,177.64,132.2544604]
[1752942355427,0.06,177.65,177.64,89.30404672]
[1752942355722,0.77,177.65,177.63,39.34]
[1752942356924,0.71,177.64,177.63,39.34]
[1752942357125,0.06,177.65,177.63,39.34]
[1752942357302,0.77,177.65,177.63,39.34]
[1752942357498,0.77,177.65,177.64,26.0]
[1752942360410,6.39904587,177.65,177.61,16.78468397]
[1752942360616,9.27945955,177.65,177.61,62.72468397]
[1752942360932,9.2200078,177.64,177.61,6.6]
[1752942361231,0.71,177.63,177.61,6.6]
[1752942361627,0.71,177.63,177.61,32.6]
[1752942361802,9.2200078,177.64,177.61,32.6]
[1752942362008,9.2200078,177.64,177.63,26.0]
[1752942362415,9.9300078,177.64,177.63,26.0]
[1752942362614,9.9300078,177.64,177.62,26.0]
[1752942362836,0.71,177.63,177.62,26.0]
[1752942363139,4.30041368,177.63,177.62,26.0]
[1752942363837,0.71,177.63,177.62,26.0]
[1752942364513,9.2200078,177.64,177.62,26.0]
[1752942364736,6.33967967,177.63,177.62,26.0]
[1752942364939,9.93009335,177.63,177.62,26.0]
[1752942366011,6.33967967,177.63,177.62,26.0]
[1752942367266,9.93009335,177.63,177.62,26.0]
[1752942367416,6.33967967,177.63,177.62,26.0]
[1752942367613,9.93009335,177.63,177.61,26.0]
[1752942367819,0.71,177.62,177.61,26.0]
[1752942368927,4.30041368,177.62,177.61,26.0]
[1752942369316,9.9304103,177.62,177.61,26.0]
[1752942370316,9.9304103,177.62,177.57,66.97509765]
[1752942370515,4.30041368,177.61,177.57,45.94]
[1752942370731,3.59041368,177.61,177.57,45.94]
[1752942370924,0.71,177.6,177.57,46.6]
[1752942371238,0.71,177.6,177.59,26.0]
[1752942371419,9.22101413,177.61,177.6,26.0]
[1752942371616,9.93101413,177.61,177.6,26.0]
[1752942374759,24.00679815,177.61,177.56,1e-08]
[1752942375061,3.59041368,177.57,177.56,1e-08]
[1752942375354,3.59041368,177.58,177.56,1e-08]
[1752942375559,5.63158191,177.57,177.56,1e-08]
[1752942376432,4.30041368,177.58,177.56,1e-08]
[1752942376433,3.59041368,177.6,177.56,4.25041369]
[1752942376651,4.30041368,177.59,177.56,1e-08]
[1752942377058,0.71,177.58,177.56,1e-08]
[1752942377940,9.93172517,177.58,177.56,1e-08]
[1752942378670,9.93172517,177.58,177.57,26.0]
[1752942378849,6.34131149,177.58,177.57,26.0]
[1752942379162,5.63131149,177.58,177.57,26.0]
[1752942380038,9.2214368,177.59,177.57,26.0]
[1752942380250,5.63102312,177.59,177.57,26.0]
[1752942380567,5.63102312,177.59,177.57,26.66]
[1752942383450,9.22104431,177.6,177.57,26.66]
[1752942383653,9.93104431,177.6,177.57,26.66]
[1752942384049,6.34063063,177.6,177.57,26.66]
[1752942385147,9.93104431,177.6,177.57,26.66]
[1752942385763,9.93104431,177.6,177.57,26.0]
[1752942386665,9.22104431,177.6,177.57,26.0]
[1752942386851,6.34117305,177.59,177.57,26.0]
[1752942387049,5.63117305,177.59,177.57,26.0]
[1752942388872,5.63117305,177.59,177.57,26.67]
[1752942389647,4.30041368,177.6,177.57,26.0]
[1752942389648,5.63074453,177.6,177.57,26.0]
[1752942389853,0.71,177.59,177.57,26.0]
[1752942390354,0.71,177.59,177.58,26.0]
[1752942390761,6.34094768,177.59,177.58,26.0]
[1752942393474,5.63075525,177.6,177.58,26.0]
[1752942394060,6.34075525,177.6,177.58,26.0]
[1752942394272,0.06,177.59,177.58,26.0]
[1752942398175,0.06,177.59,177.58,26.67]
[1752942398680,0.06,177.59,177.58,28.97013973]
[1752942399676,0.06,177.59,177.58,26.67]
[1752942399880,0.06,177.59,177.58,28.97013973]
[1752942400085,0.06,177.59,177.58,26.0]
[1752942400282,0.06,177.59,177.58,26.67]
[1752942400581,0.06,177.59,177.58,26.0]
[1752942401581,0.06,177.59,177.56,1e-08]
[1752942401582,3.07013973,177.59,177.56,1e-08]
[1752942401784,2.30013973,177.57,177.56,1e-08]
[1752942402290,3.01013973,177.57,177.56,1e-08]
[1752942403058,4.3063487,177.57,177.56,1e-08]
[1752942403480,9.93793061,177.57,177.56,1e-08]
[1752942406490,13.53427931,177.57,177.56,1e-08]
[1752942407569,9.93793061,177.57,177.56,1e-08]
[1752942410075,49.29793061,177.57,177.56,1e-08]
[1752942411273,45.70158191,177.57,177.56,1e-08]
[1752942411471,6.34158191,177.57,177.56,1e-08]
[1752942411673,49.29793061,177.57,177.56,1e-08]
[1752942413502,48.58761348,177.58,177.56,1e-08]
[1752942413793,4.3063487,177.57,177.56,1e-08]
[1752942414828,3.5963487,177.57,177.56,1e-08]
[1752942415593,9.22793061,177.57,177.56,1e-08]
[1752942415793,9.28793061,177.57,177.56,1e-08]
[1752942416395,0.06,177.57,177.56,0.68000001]
[1752942416800,5.69158191,177.57,177.56,0.68000001]
[1752942417287,5.69158191,177.57,177.56,1e-08]
[1752942417600,0.06,177.57,177.56,1e-08]
[1752942418887,0.06,177.57,177.56,0.68000001]
[1752942420480,0.06,177.57,177.56,1e-08]
[1752942421300,0.06,177.57,177.56,0.68000001]
[1752942421800,0.06,177.57,177.56,4.27634871]
[1752942422676,0.06,177.57,177.56,21.06103268]
[1752942422881,0.06,177.57,177.56,26.69293175]
[1752942423078,0.06,177.57,177.56,33.29293175]
[1752942425279,0.06,177.57,177.56,63.48658305]
[1752942425480,0.06,177.57,177.56,67.08293175]
[1752942425683,0.06,177.57,177.56,106.42293175]
[1752942436007,0.06,177.59,177.58,26.0]
[1752942436523,0.77,177.59,177.58,26.0]
[1752942436725,4.3663487,177.59,177.56,1e-08]
[1752942436907,3.5963487,177.57,177.56,1e-08]
[1752942437345,9.93793061,177.57,177.56,1e-08]
[1752942437702,6.34158191,177.57,177.56,1e-08]
[1752942437896,9.93793061,177.57,177.56,1e-08]
[1752942438518,9.99793061,177.57,177.56,1e-08]
[1752942438928,6.40158191,177.57,177.56,1e-08]
[1752942439639,0.06,177.57,177.56,26.00000001]
[1752942439925,0.77,177.57,177.56,26.00000001]
[1752942440608,9.99793061,177.57,177.56,1e-08]
[1752942440931,0.06,177.57,177.56,30.27634871]
[1752942441123,0.06,177.57,177.56,43.46468398]
[1752942441330,0.06,177.57,177.56,42.78468398]
[1752942441513,0.77,177.57,177.56,42.78468398]
[1752942441832,0.06,177.57,177.56,26.00000001]
[1752942442126,0.06,177.57,177.56,4.27634871]
[1752942442308,0.06,177.57,177.56,26.69293175]
[1752942442503,0.06,177.57,177.56,64.07928045]
[1752942442910,0.06,177.57,177.56,70.67928045]
[1752942443627,0.06,177.57,177.56,63.48658305]
[1752942443832,0.06,177.57,177.56,67.08293175]
[1752942445217,0.06,177.57,177.56,33.29293175]
[1752942446328,0.06,177.57,177.56,7.28000001]
[1752942446515,0.77,177.57,177.56,6.60000001]
[1752942446719,0.06,177.57,177.56,10.19634871]
[1752942448731,0.77,177.57,177.56,6.60000001]
[1752942448944,0.77,177.57,177.56,32.60000001]
[1752942449426,0.77,177.57,177.56,26.00000001]
[1752942449838,4.3663487,177.57,177.56,26.00000001]
[1752942450138,9.99793061,177.57,177.56,1e-08]
[1752942450334,6.40158191,177.57,177.56,1e-08]
[1752942450743,9.99793061,177.57,177.56,1e-08]
[1752942450945,6.40158191,177.57,177.56,1e-08]
[1752942451329,9.99793061,177.57,177.56,1e-08]
[1752942451536,6.40158191,177.57,177.56,1e-08]
[1752942451843,9.99793061,177.57,177.56,1e-08]
[1752942453524,6.40158191,177.57,177.56,1e-08]
[1752942453746,9.99793061,177.57,177.56,1e-08]
[1752942456427,13.59427931,177.57,177.56,1e-08]
[1752942456826,9.99793061,177.57,177.56,1e-08]
[1752942458232,13.59427931,177.57,177.56,1e-08]
[1752942458949,9.99793061,177.57,177.56,1e-08]
[1752942460243,50.77793061,177.57,177.56,1e-08]
[1752942460633,6.40158191,177.57,177.56,1e-08]
[1752942460832,0.77,177.57,177.56,1e-08]
[1752942461038,0.06,177.57,177.56,1e-08]
[1752942461237,9.99793061,177.57,177.56,1e-08]
[1752942461442,6.40158191,177.57,177.56,1e-08]
[1752942462145,0.06,177.57,177.56,26.00000001]
[1752942462744,0.06,177.57,177.56,26.71000001]
[1752942463334,0.06,177.57,177.56,26.00000001]
[1752942463938,0.06,177.57,177.56,1e-08]
[1752942465545,0.06,177.57,177.56,26.00000001]
[1752942466452,0.06,177.57,177.56,1e-08]
[1752942467423,0.06,177.57,177.56,26.00000001]
[1752942467938,0.06,177.57,177.56,26.71000001]
[1752942468743,0.06,177.57,177.56,52.72293175]
[1752942469932,0.06,177.57,177.56,59.32293175]
[1752942470347,0.06,177.57,177.56,93.11293175]
[1752942471257,0.06,177.57,177.56,89.51658305]
[1752942471437,0.06,177.57,177.56,93.11293175]
[1752942472131,0.06,177.57,177.56,53.69103268]
[1752942472332,0.06,177.57,177.56,50.09468398]
[1752942472537,0.06,177.57,177.56,52.98103268]
[1752942473138,0.06,177.57,177.56,46.38103268]
[1752942473341,0.06,177.57,177.56,47.08103268]
[1752942474448,0.06,177.57,177.56,43.48468398]
[1752942474934,0.06,177.57,177.56,47.08103268]
[1752942475353,0.06,177.57,177.56,43.48468398]
[1752942475554,0.06,177.57,177.56,47.08103268]
[1752942478254,0.06,177.57,177.56,43.48468398]
[1752942478558,0.06,177.57,177.56,47.08103268]
[1752942478734,0.06,177.57,177.56,46.38103268]
[1752942479143,0.75,177.57,177.56,49.38468398]
[1752942479351,0.75,177.57,177.56,1e-08]
[1752942479760,0.75,177.57,177.56,26.00000001]
[1752942480262,4.3463487,177.57,177.56,26.00000001]
[1752942480445,9.97793061,177.57,177.56,1e-08]
[1752942481541,6.38158191,177.57,177.56,1e-08]
[1752942481765,9.97793061,177.57,177.56,1e-08]
[1752942483269,13.57427931,177.57,177.56,1e-08]
[1752942486574,27.65323408,177.57,177.52,0.03]
[1752942486744,3.5963487,177.53,177.52,0.03]
[1752942486939,44.3563487,177.53,177.52,0.03]
[1752942487163,45.0463487,177.53,177.52,0.03]
[1752942487355,41.45,177.53,177.52,0.03]
[1752942487557,45.0463487,177.53,177.52,0.03]
[1752942488471,50.17919948,177.53,177.52,0.03]
[1752942489953,46.58285078,177.53,177.52,0.03]
[1752942490153,50.17919948,177.53,177.52,0.03]
[1752942490748,5.63189907,177.56,177.52,0.73]
[1752942490951,9.22824777,177.56,177.52,0.03]
[1752942491150,42.45,177.56,177.53,26.0]
[1752942491364,41.76,177.56,177.53,30.2963487]
[1752942491562,41.76,177.56,177.53,26.7]
[1752942491760,3.5963487,177.54,177.52,0.03]
[1752942491973,3.5963487,177.53,177.52,0.03]
[1752942492175,4.2863487,177.53,177.52,0.03]
[1752942492753,9.91919948,177.53,177.52,0.03]
[1752942494382,6.32285078,177.53,177.52,0.03]
[1752942494568,9.91919948,177.53,177.52,0.03]
[1752942496580,6.32285078,177.53,177.52,0.03]
[1752942496749,14.13895477,177.57,177.55,16.78468397]
[1752942496750,0.06,177.57,177.55,16.78468397]
[1752942496950,0.06,177.59,177.58,42.78468397]
[1752942497163,0.06,177.61,177.59,6.1622]
[1752942497360,0.06,177.61,177.6,20.38103267]
[1752942497580,0.06,177.61,177.6,21.08103267]
[1752942498258,0.06,177.61,177.6,17.48468397]
[1752942498590,0.06,177.61,177.6,21.08103267]
[1752942498976,0.06,177.61,177.6,30.5730188]
[1752942499863,0.06,177.61,177.6,24.7203146]
[1752942500082,0.06,177.61,177.6,30.5730188]
[1752942500885,0.06,177.64,177.6,30.5730188]
[1752942500886,0.06,177.64,177.62,42.78468397]
[1752942501094,0.06,177.64,177.62,22.63738817]
[1752942501286,0.06,177.64,177.62,23.33738817]
[1752942502191,0.06,177.64,177.62,23.11468059]
[1752942502496,0.06,177.64,177.62,28.96738479]
[1752942503677,0.06,177.64,177.62,71.06738479]
[1752942508274,0.06,177.64,177.62,65.21468059]
[1752942508575,0.06,177.64,177.62,71.06738479]
[1752942508777,0.06,177.64,177.62,224.26738479]
[1752942510004,0.06,177.64,177.62,229.89238479]
[1752942510380,0.06,177.64,177.62,252.20468059]
[1752942510694,0.06,177.64,177.62,176.53738817]
[1752942510911,0.06,177.64,177.62,218.25468059]
[1752942511074,0.06,177.64,177.62,224.10738479]
[1752942512886,0.06,177.64,177.62,218.47738817]
[1752942513086,0.06,177.64,177.62,224.10738479]
[1752942514401,0.06,177.64,177.62,23.33738817]
[1752942514696,0.06,177.64,177.62,28.96738479]
[1752942515086,0.06,177.64,177.62,22.63738817]
[1752942515410,0.06,177.64,177.62,28.93738479]
[1752942515575,0.06,177.64,177.62,23.30738817]
[1752942516598,0.06,177.64,177.62,28.93738479]
[1752942517009,0.06,177.64,177.62,17.45468397]
[1752942517218,0.06,177.64,177.62,58.62468397]
[1752942517379,0.06,177.64,177.62,64.47738817]
[1752942517584,0.06,177.64,177.62,16.78468397]
[1752942518313,0.06,177.64,177.62,77.92038445]
[1752942518599,0.06,177.67,177.66,16.78468397]
[1752942518778,0.06,177.67,177.66,65.74755687]
[1752942518978,0.06,177.67,177.66,71.70738817]
[1752942520313,0.06,177.67,177.66,111.6889901]
[1752942520515,0.06,177.67,177.66,128.5689901]
[1752942520803,0.06,177.67,177.66,111.1261172]
[1752942521107,0.06,177.67,177.66,108.86215429]
[1752942521718,0.06,177.67,177.66,109.42502719]
[1752942523502,0.06,177.67,177.66,102.82502719]
[1752942524219,0.06,177.67,177.66,106.41376848]
[1752942525088,0.06,177.67,177.66,112.67266848]
[1752942525616,0.06,177.67,177.66,118.29766848]
[1752942525800,0.06,177.67,177.66,112.10979558]
[1752942526113,0.06,177.67,177.66,105.4951859]
[1752942526327,0.06,177.67,177.66,112.67266848]
[1752942526525,0.06,177.67,177.66,109.08392719]
[1752942526687,0.06,177.67,177.66,112.67266848]
[1752942527284,0.06,177.67,177.66,258.6951859]
[1752942527487,0.06,177.67,177.66,118.70979558]
[1752942527701,0.06,177.67,177.66,121.51410764]
[1752942527899,0.06,177.67,177.66,123.15800764]
[1752942528287,0.06,177.67,177.66,74.18052506]
[1752942528486,0.06,177.67,177.66,119.68926635]
[1752942529296,0.06,177.67,177.66,77.76926635]
[1752942529497,0.06,177.67,177.66,58.70468397]
[1752942529702,0.06,177.67,177.66,16.78468397]
[1752942529703,0.74,177.67,177.66,16.78468397]
[1752942530911,9.95715351,177.67,177.66,16.78468397]
[1752942531100,4.32874129,177.67,177.66,16.78468397]
[1752942531508,9.95715351,177.67,177.66,16.78468397]
[1752942531710,5.68841222,177.67,177.66,16.78468397]
[1752942532027,0.06,177.67,177.66,20.37342526]
[1752942532522,0.06,177.67,177.66,62.39342526]
[1752942533822,0.06,177.67,177.66,68.72215429]
[1752942534526,0.06,177.68,177.67,50.57468397]
[1752942534703,0.06,177.68,177.67,56.90309619]
[1752942535105,0.06,177.68,177.67,60.49183748]
[1752942535611,0.06,177.68,177.67,102.51183748]
[1752942536002,0.06,177.68,177.67,103.0746787]
[1752942536405,0.06,177.68,177.67,103.5746787]
[1752942536824,0.06,177.68,177.67,105.1149787]
[1752942538129,0.06,177.68,177.67,101.52623741]
[1752942538531,0.06,177.68,177.67,105.1149787]
[1752942539935,0.06,177.68,177.67,101.52623741]
[1752942540106,0.06,177.68,177.67,105.1149787]
[1752942540810,0.06,177.71,177.7,16.78468397]
[1752942541026,0.06,177.71,177.7,69.27617146]
[1752942541233,0.06,177.71,177.7,69.97617146]
[1752942541904,0.06,177.71,177.7,23.78743017]
[1752942542239,0.06,177.71,177.7,65.12468397]
[1752942542409,0.75,177.71,177.7,65.08468397]
[1752942542748,0.75,177.71,177.7,16.78468397]
[1752942543035,0.06,177.71,177.7,58.66468397]
[1752942543530,0.75,177.71,177.7,58.66468397]
[1752942544140,0.75,177.71,177.7,67.9]
[1752942544931,6.37714534,177.71,177.7,84.68468397]
[1752942545133,9.96588663,177.71,177.7,16.78468397]
[1752942545516,9.96588663,177.71,177.7,42.78468397]
[1752942546015,9.96588663,177.71,177.7,26.0]
[1752942548538,11.57308663,177.71,177.7,26.0]
[1752942548916,11.57308663,177.71,177.69,0.03]
[1752942549118,4.27874129,177.7,177.69,0.03]
[1752942550228,9.9062033,177.7,177.69,0.03]
[1752942551318,6.31746201,177.7,177.69,0.03]
[1752942551627,9.9062033,177.7,177.69,0.03]
[1752942552526,6.31746201,177.7,177.69,0.03]
[1752942552937,9.9062033,177.7,177.69,0.03]
[1752942556541,6.31746201,177.7,177.69,0.03]
[1752942556736,9.9062033,177.7,177.69,0.03]
[1752942557718,6.31746201,177.7,177.69,0.03]
[1752942557943,9.9062033,177.7,177.69,0.03]
[1752942559748,9.27615959,177.71,177.69,0.03]
[1752942560239,9.27615959,177.71,177.7,33.79]
[1752942560444,0.06,177.71,177.69,16.81468397]
[1752942561836,4.33874129,177.71,177.69,16.81468397]
[1752942562946,9.96590497,177.71,177.69,16.81468397]
[1752942563148,4.26874129,177.7,177.69,0.03]
[1752942563330,4.26874129,177.7,177.65,1e-08]
[1752942563529,7.17748258,177.66,177.61,0.03]
[1752942563729,8.4775,177.69,177.61,0.03]
[1752942564049,3.58874129,177.62,177.61,0.03]
[1752942564553,4.26874129,177.62,177.61,0.03]
[1752942564738,9.89873791,177.62,177.61,0.03]
[1752942568549,6.30999662,177.62,177.61,0.03]
[1752942568851,9.89873791,177.62,177.61,0.03]
[1752942569052,4.26874129,177.62,177.61,0.03]
[1752942569238,5.62974768,177.63,177.61,0.03]
[1752942569441,3.58874129,177.62,177.61,0.03]
[1752942570037,0.68,177.63,177.61,0.03]
[1752942570257,3.58874129,177.62,177.61,0.03]
[1752942570445,4.26874129,177.62,177.61,0.03]
[1752942571147,3.58874129,177.62,177.61,0.03]
[1752942571356,3.58874129,177.63,177.61,16.81468397]
[1752942571546,3.58874129,177.64,177.61,16.81468397]
[1752942571855,3.58874129,177.63,177.61,16.81468397]
[1752942572558,3.58874129,177.64,177.61,16.81468397]
[1752942572856,3.58874129,177.64,177.61,17.47468397]
[1752942573860,3.58874129,177.64,177.61,23.91468397]
[1752942574060,3.58874129,177.64,177.61,23.25468397]
[1752942574656,3.58874129,177.64,177.61,23.91468397]
[1752942576660,3.58874129,177.64,177.61,23.25468397]
[1752942576961,4.26874129,177.64,177.61,23.25468397]
[1752942577339,4.26874129,177.63,177.61,23.25468397]
[1752942578266,4.26874129,177.62,177.61,23.25468397]
[1752942578465,9.89873791,177.62,177.61,6.47]
[1752942579164,4.26874129,177.62,177.61,6.47]
[1752942579767,4.26874129,177.62,177.61,0.03]
[1752942580167,3.58874129,177.63,177.61,0.03]
[1752942580468,4.26874129,177.63,177.61,0.03]
[1752942580641,0.68,177.63,177.61,0.03]
[1752942580837,4.26874129,177.63,177.61,0.03]
[1752942581662,9.89843278,177.63,177.61,0.03]
[1752942581961,3.58874129,177.62,177.61,0.03]
[1752942582265,4.26874129,177.62,177.61,0.03]
[1752942582849,9.89873791,177.62,177.61,0.03]